fUSD/lending_fUSD_20240426
["ID","MTS","AMOUNT","RATE_DAILY","PERIOD"]
[323700095,1714167076919,-536.60501813,0.0001833,2]
[323700096,1714167076928,-157.25237568,0.0001835,2]
[323700097,1714167076938,-200.0,0.00018354,2]
[323700098,1714167076948,-224.60048978,0.00018392,2]
[323700099,1714167076959,-536.60501813,0.00018402,2]
[323700100,1714167076970,-157.25237568,0.00018404,2]
[323700101,1714167076979,-154.76534602,0.00018406,2]
[323700102,1714167076988,-167.0,0.00018444,2]
[323700103,1714167076998,-157.25237568,0.00018444,2]
[323700104,1714167077008,-154.76534602,0.00018455,2]
[323700105,1714167077018,-152.47114042,0.00018459,2]
[323700106,1714167077029,-536.60501813,0.00018469,2]
[323700107,1714167077038,-166.84086597,0.00018491,2]
[323700108,1714167077049,-518.0,0.00018493,2]
[323700109,1714167077058,-150.0,0.000185,2]
[323700110,1714167077069,-150.0,0.000185,2]
[323700111,1714167077079,-224.60048978,0.00018507,2]
[323700112,1714167077089,-536.60501813,0.0001851,2]
[323700113,1714167077100,-999.32,0.0001858,2]
[323700114,1714167077110,-536.60501813,0.0001861,2]
[323700115,1714167077121,-153.85256324,0.0001869,2]
[323700116,1714167077133,-562.97266904,0.00018709,2]
[323700117,1714167077143,-154.76534602,0.00018761,2]
[323700118,1714167077155,-536.60501813,0.00018844,2]
[323700119,1714167077165,-562.97266904,0.0001887,2]
[323700120,1714167077175,-163.06543193,0.00018872,2]
[323700121,1714167077186,-154.31732652,0.00018873,2]
[323700122,1714167077197,-224.60048978,0.00018885,2]
[323700123,1714167077208,-224.60048978,0.00018943,2]
[323700124,1714167077218,-166.66666668,0.00018953,2]
[323700125,1714167077229,-536.60501813,0.00018955,2]
[323700126,1714167077241,-151.74936674,0.00018983,2]
[323700127,1714167077251,-154.76534602,0.00018988,2]
[323700128,1714167077261,-151.74936674,0.00018998,2]
[323700129,1714167077270,-411.05908589,0.00019,2]
[323700130,1714167077281,-850.0,0.00019,3]
[323700131,1714167077292,-150.0,0.00019,2]
[323700132,1714167077302,-150.0,0.00019,2]
[323700133,1714167077314,-152.47114042,0.00019004,2]
[323700134,1714167077325,-153.85256324,0.00019078,2]
[323700135,1714167077336,-800.0,0.00019151,2]
[323700136,1714167077347,-1000.0,0.00019177,2]
[323700137,1714167077358,-518.0,0.00019178,2]
[323700138,1714167077369,-200.0,0.00019178,2]
[323700139,1714167077379,-4000.0,0.00019178,2]
[323700140,1714167077388,-3097.79,0.000192,2]
[323700141,1714167077398,-2490.92,0.000192,2]
[323700142,1714167077407,-150.0,0.00019226,2]
[323700143,1714167077418,-562.97266904,0.00019254,2]
[323700144,1714167077428,-784.99535603,0.00019307,2]
[323700145,1714167077438,-150.74237741,0.00019344,2]
[323700146,1714167077448,-562.97266904,0.00019357,2]
[323700147,1714167077458,-311.56,0.00019491,2]
[323700148,1714167077469,-150.74237741,0.00019495,2]
[323700149,1714167077479,-150.0,0.000195,2]
[323700150,1714167077488,-150.0,0.000195,2]
[323700151,1714167077498,-150.0,0.00019512,2]
[323700152,1714167077508,-153.85256324,0.00019564,2]
[323700153,1714167077519,-224.60048978,0.0001957,2]
[323700154,1714167077529,-150.0,0.00019604,2]
[323700155,1714167077540,-536.60501813,0.00019609,2]
[323700156,1714167077551,-150.0,0.00019673,2]
[323700157,1714167077564,-536.60501813,0.00019701,2]
[323700158,1714167077576,-41256.33581329,0.00019733,2]
[323700159,1714167077586,-562.97266904,0.00019762,2]
[323700160,1714167077598,-173.44820365,0.00019777,2]
[323700161,1714167077610,-150.0,0.00019818,2]
[323700162,1714167077621,-150.0,0.00019819,2]
[323700163,1714167077633,-157.25237568,0.00019854,2]
[323700164,1714167077643,-518.0,0.00019863,2]
[323700165,1714167077655,-224.60048978,0.00019868,2]
[323700166,1714167077666,-166.46797125,0.00019955,2]
[323700167,1714167077680,-153.85256324,0.00019956,2]
[323700168,1714167077691,-562.97266904,0.00019965,2]
[323700169,1714167077702,-50000.0,0.0002,2]
[323700170,1714167077714,-1980.5417067,0.0002,2]
[323700171,1714167077725,-234.61301428,0.0002,2]
[323700172,1714167077736,-3392.06739192,0.0002,2]
[323700173,1714167077748,-2902.86,0.0002,2]
[323700174,1714167077759,-46541.35052774,0.0002,2]
[323700175,1714167077770,-2414.50652607,0.0002,2]
[323700176,1714167077781,-428.79639318,0.0002,2]
[323700177,1714167077792,-6516.93910644,0.0002,2]
[323700178,1714167077802,-155.0,0.0002,2]
[323700179,1714167077814,-11912.38150092,0.0002,2]
[323700180,1714167077825,-169.23868347,0.0002,2]
[323700181,1714167077836,-652.4,0.0002,2]
[323700182,1714167077847,-207.65052083,0.0002,2]
[323700183,1714167077859,-14332.38439655,0.0002,2]
[323700184,1714167077870,-202.84551372,0.0002,30]
[323700185,1714167077882,-191.58527725,0.0002,2]
[323700186,1714167077893,-150.0,0.0002,2]
[323700187,1714167077903,-200.0,0.0002,2]
[323700188,1714167077914,-176.0,0.0002,2]
[323700189,1714167077926,-275.5,0.0002,2]
[323700190,1714167077937,-150.0,0.0002,2]
[323700191,1714167077947,-150.0,0.0002,2]
[323700192,1714167077959,-1000.0,0.0002,2]
[323700193,1714167077969,-150.0,0.00020025,2]
[323700194,1714167077980,-150.0,0.00020025,2]
[323700195,1714167077990,-150.0,0.00020034,2]
[323700196,1714167078000,-7600.0,0.0002009,2]
[323700197,1714167078011,-651.96453578,0.00020176,3]
[323700198,1714167078023,-150.0,0.00020192,2]
[323700199,1714167078034,-562.97266904,0.00020244,2]
[323700200,1714167078044,-150.0,0.00020272,2]
[323700201,1714167078054,-150.0,0.00020276,2]
[323700202,1714167078064,-152.47114042,0.00020301,2]
[323700203,1714167078074,-153.03532946,0.00020327,2]
[323700204,1714167078085,-999.32,0.0002037,2]
[323700205,1714167078095,-150.0,0.00020417,2]
[323700206,1714167078106,-152.47114042,0.00020423,2]
[323700207,1714167078129,-152.47114042,0.00020434,2]
[323700208,1714167078153,-536.60501813,0.00020438,2]
[323700209,1714167078179,-3474.18958781,0.00020455,2]
[323700210,1714167078207,-536.60501813,0.00020485,2]
[323700211,1714167078233,-150.0,0.000205,2]
[323700212,1714167078262,-150.0,0.000205,2]
[323700213,1714167078273,-150.74237741,0.00020522,2]
[323700214,1714167078283,-173.19,0.00020548,2]
[323700215,1714167078293,-518.0,0.00020548,2]
[323700216,1714167078302,-153.67518869,0.00020573,2]
[323700217,1714167078312,-152.83625945,0.00020605,2]
[323700218,1714167078322,-224.60048978,0.00020636,2]
[323700219,1714167078332,-150.0,0.00020713,2]
[323700220,1714167078342,-157.25237568,0.00020717,2]
[323700221,1714167078352,-224.60048978,0.00020725,2]
[323700222,1714167078362,-536.60501813,0.00020774,2]
[323700223,1714167078372,-152.83625945,0.00020774,2]
[323700224,1714167078381,-300.0,0.00020794,2]
[323700225,1714167078391,-150.0,0.0002084,2]
[323700226,1714167078401,-153.85256324,0.00020892,2]
[323700227,1714167078411,-3097.79,0.000209,2]
[323700228,1714167078421,-2490.92,0.000209,2]
[323700229,1714167078431,-152.50582997,0.00020901,2]
[323700230,1714167078441,-562.97266904,0.00020902,2]
[323700231,1714167078451,-784.99535603,0.00020928,2]
[323700232,1714167078461,-2226.41,0.00020951,2]
[323700233,1714167078471,-13238.09,0.00020951,2]
[323700234,1714167078480,-562.97266904,0.00020973,2]
[323700235,1714167078490,-500.10305345,0.00020999,2]
[323700236,1714167078499,-50000.0,0.00021,2]
[323700237,1714167078509,-406635.75634919,0.00021,2]
[323700238,1714167078532,-654.02,0.00021,2]
[323700239,1714167078547,-2925.69016085,0.00021,2]
[323700240,1714167078558,-520.17011,0.00021,2]
[323700241,1714167078572,-89264.36337996,0.00021,2]
[323700242,1714167078584,-1648.93992954,0.00021,2]
[323700243,1714167078595,-353698.45555849,0.00021,2]
[323700244,1714167078807,-664.53688961,0.00021,2]
[323700245,1714167079116,-755.78115822,0.00010957,2]
[323700246,1714167079133,-660.87101,0.00010957,2]
[323700247,1714167079463,-3104.95377101,0.00010957,2]
[323700248,1714167079474,-500.0,0.00010958,2]
[323700249,1714167079484,-588.53,0.00010958,2]
[323700250,1714167079495,-500.0,0.00010958,2]
[323700251,1714167079505,-500.0,0.00010958,2]
[323700252,1714167079514,-500.0,0.00010958,2]
[323700253,1714167079523,-500.0,0.00010958,2]
[323700254,1714167079533,-500.0,0.00011232,2]
[323700255,1714167079542,-500.0,0.00011232,2]
[323700256,1714167079551,-225.33,0.00011506,2]
[323700257,1714167079561,-92785.05822901,0.00021,2]
[323700258,1714167079573,-738.57999998,0.00021,2]
[323700259,1714167079584,-641.85,0.00021,2]
[323700260,1714167079614,-500.0,0.00010958,2]
[323700261,1714167079625,-500.0,0.00011232,2]
[323700262,1714167079635,-5254.70780033,0.00021,2]
[323700263,1714167079648,-455.27599994,0.00021,2]
[323700264,1714167079795,10094.55237361,8.219e-05,2]
[323700265,1714167593606,265.63,8.219e-05,2]
[323700272,1714168081385,283.77,8.219e-05,2]
[323700408,1714168232615,-250.0,9.536e-05,2]
[323700409,1714168232629,-184.18,9.559e-05,2]
[323700410,1714168232641,-8.515,9.563e-05,2]
[323700411,1714168232671,-191.485,9.563e-05,2]
[323700412,1714168232682,-2713.4028,9.683e-05,2]
[323700413,1714168232693,-1149.5658,9.683e-05,2]
[323700414,1714168232705,-560.17,9.706e-05,2]
[323700415,1714168232716,-150.0,9.782e-05,2]
[323700416,1714168232727,-150.0,9.782e-05,2]
[323700417,1714168232737,-6708.69141144,9.783e-05,2]
[323700418,1714168232749,-867.67329241,9.783e-05,2]
[323700419,1714168232761,-1208.83867573,9.783e-05,2]
[323700420,1714168232781,-950.37307554,9.783e-05,2]
[323700421,1714168232836,-7603.85073837,9.783e-05,2]
[323700422,1714168232891,-319.50034176,9.783e-05,2]
[323700423,1714168232904,-860.85972681,9.783e-05,2]
[323700424,1714168232945,-695.72180476,9.783e-05,2]
[323700459,1714168237895,-385.46466382,9.783e-05,2]
[323700460,1714168237908,-983.30544367,9.783e-05,2]
[323700461,1714168237948,-3531.74205304,9.783e-05,2]
[323700462,1714168238058,-11151.5518935,9.783e-05,2]
[323700463,1714168238068,-23900.0,9.784e-05,2]
[323700464,1714168238079,-858.1104,9.88e-05,2]
[323700465,1714168238090,-150.0,9.945e-05,2]
[323700466,1714168238100,-156.87879724,9.98e-05,2]
[323700467,1714168238110,-408.18866069,0.0001,2]
[323700468,1714168238120,-156.87879733,0.0001,2]
[323700469,1714168238130,-156.87879724,0.0001006,2]
[323700470,1714168238141,-156.87879724,0.0001014,2]
[323700471,1714168238151,-156.87879724,0.00010219,2]
[323700472,1714168238162,-600.0,0.00010279,2]
[323700473,1714168238173,-156.87879724,0.00010299,2]
[323700474,1714168238183,-156.87879724,0.00010379,2]
[323700475,1714168238193,-499.99,0.00010379,2]
[323700476,1714168238203,-283.77,0.00010452,2]
[323700477,1714168238212,-156.87879724,0.00010459,2]
[323700478,1714168238222,-156.87879724,0.00010539,2]
[323700479,1714168238232,-156.87879724,0.00010619,2]
[323700480,1714168238242,-156.87879724,0.00010698,2]
[323700481,1714168238252,-300.70852993,0.00010753,2]
[323700482,1714168238262,-156.87879724,0.00010778,2]
[323700483,1714168238273,-2148.57485958,0.00010855,2]
[323700484,1714168238284,-191.46244167,0.00010855,2]
[323700485,1714168238294,-199.29265944,0.00010856,2]
[323700486,1714168238304,-168.07520837,0.00010857,2]
[323700487,1714168238314,-156.87879724,0.00010858,2]
[323700488,1714168238323,-182888.8028,0.00010858,2]
[323700489,1714168238334,-155.0,0.000109,2]
[323700490,1714168238345,-155.20120873,0.00010955,2]
[323700491,1714168238355,-375.40085873,0.00010955,2]
[323700492,1714168238365,-4729.8087316,0.00010957,2]
[323700493,1714168238375,-498.84989153,0.00010958,2]
[323700494,1714168238385,-500.0,0.00010958,2]
[323700495,1714168238395,-500.0,0.00010958,2]
[323700496,1714168238406,-506.22699042,0.00010958,2]
[323700497,1714168238416,-500.0,0.00010958,2]
[323700498,1714168238426,-500.0,0.00010958,2]
[323700499,1714168238436,-500.0,0.00010958,2]
[323700500,1714168238446,-500.0,0.00010958,2]
[323700501,1714168238456,-500.0,0.00010958,2]
[323700502,1714168238466,-500.0,0.00010958,2]
[323700503,1714168238476,-500.0,0.00010958,2]
[323700504,1714168238486,-500.0,0.00010958,2]
[323700505,1714168238497,-500.0,0.00010958,2]
[323700506,1714168238507,-500.0,0.00010958,2]
[323700507,1714168238517,-500.0,0.00010958,2]
[323700508,1714168238527,-500.0,0.00010958,2]
[323700509,1714168238537,-500.0,0.00010958,2]
[323700510,1714168238547,-500.0,0.00010958,2]
[323700511,1714168238557,-500.0,0.00010958,2]
[323700512,1714168238567,-500.0,0.00010958,2]
[323700513,1714168238578,-500.0,0.00010958,2]
[323700514,1714168238588,-500.0,0.00010958,2]
[323700515,1714168238598,-500.0,0.00010958,2]
[323700516,1714168238609,-500.0,0.00010958,2]
[323700517,1714168238620,-500.0,0.00010958,2]
[323700518,1714168238630,-508.64407216,0.00010958,2]
[323700519,1714168238641,-500.0,0.00010958,2]
[323700520,1714168238651,-500.0,0.00010958,2]
[323700521,1714168238662,-503.09573577,0.00010958,2]
[323700522,1714168238672,-500.0,0.00010958,2]
[323700523,1714168238682,-500.0,0.00010958,2]
[323700524,1714168238692,-500.0,0.00010958,2]
[323700525,1714168238702,-554.04,0.00010958,2]
[323700526,1714168238712,-500.0,0.00010958,2]
[323700527,1714168238723,-500.0,0.00010958,2]
[323700528,1714168238732,-500.0,0.00010958,2]
[323700529,1714168238742,-500.0,0.00010958,2]
[323700530,1714168238753,-500.0,0.00010958,2]
[323700531,1714168238763,-500.0,0.00010958,2]
[323700532,1714168238773,-500.0,0.00010958,2]
[323700533,1714168238783,-500.49506383,0.00010958,2]
[323700534,1714168238794,-500.0,0.00010958,2]
[323700535,1714168238804,-500.0,0.00010958,2]
[323700536,1714168238814,-500.0,0.00010958,2]
[323700537,1714168238824,-280.96461844,0.00010958,2]
[323700538,1714168238834,-500.0,0.00010958,2]
[323700539,1714168238844,-500.0,0.00010958,2]
[323700540,1714168238853,-533.78818841,0.00010958,2]
[323700541,1714168238863,-500.0,0.00010958,2]
[323700542,1714168238874,-500.0,0.00010958,2]
[323700543,1714168238884,-500.0,0.00010958,2]
[323700544,1714168238894,-500.0,0.00010958,2]
[323700545,1714168238904,-500.0,0.00010958,2]
[323700546,1714168238913,-500.0,0.00010958,2]
[323700547,1714168238923,-500.0,0.00010958,2]
[323700548,1714168238933,-504.17834275,0.00010958,2]
[323700549,1714168238943,-500.0,0.00010958,2]
[323700550,1714168238953,-500.0,0.00010958,2]
[323700551,1714168238962,-500.0,0.00010958,2]
[323700552,1714168238972,-500.0,0.00010958,2]
[323700553,1714168238982,-500.0,0.00010958,2]
[323700554,1714168238992,-500.0,0.00010958,2]
[323700555,1714168239003,-500.0,0.00010958,2]
[323700556,1714168239013,-500.0,0.00010958,2]
[323700557,1714168239023,-500.0,0.00010958,2]
[323700558,1714168239033,-500.0,0.00010958,2]
[323700559,1714168239043,-500.0,0.00010958,2]
[323700560,1714168239053,-500.0,0.00010958,2]
[323700561,1714168239063,-500.0,0.00010958,2]
[323700562,1714168239073,-500.0,0.00010958,2]
[323700563,1714168239085,-511.62831536,0.00010958,2]
[323700564,1714168239095,-500.0,0.00010958,2]
[323700565,1714168239106,-500.0,0.00010958,2]
[323700566,1714168239115,-500.0,0.00010958,2]
[323700567,1714168239125,-500.0,0.00010958,2]
[323700568,1714168239135,-500.0,0.00010958,2]
[323700569,1714168239145,-500.0,0.00010958,2]
[323700570,1714168239155,-500.0,0.00010958,2]
[323700571,1714168239165,-500.0,0.00010958,2]
[323700572,1714168239175,-509.11121366,0.00010958,2]
[323700573,1714168239186,-500.0,0.00010958,2]
[323700574,1714168239196,-410.75993095,0.00010958,2]
[323700575,1714168239205,-500.0,0.00010958,2]
[323700576,1714168239215,-500.0,0.00010958,2]
[323700577,1714168239225,-500.0,0.00010958,2]
[323700578,1714168239235,-500.0,0.00010958,2]
[323700579,1714168239244,-500.0,0.00010958,2]
[323700580,1714168239254,-500.0,0.00010958,2]
[323700581,1714168239264,-269.59330706,0.00010958,2]
[323700582,1714168239275,-500.0,0.00010958,2]
[323700583,1714168239285,-500.0,0.00010958,2]
[323700584,1714168239295,-500.0,0.00010958,2]
[323700585,1714168239305,-500.0,0.00010958,2]
[323700586,1714168239315,-500.0,0.00010958,2]
[323700587,1714168239325,-500.0,0.00010958,2]
[323700588,1714168239335,-500.0,0.00010958,2]
[323700589,1714168239345,-500.0,0.00010958,2]
[323700590,1714168239355,-500.0,0.00010958,2]
[323700591,1714168239365,-500.0,0.00010958,2]
[323700592,1714168239375,-500.0,0.00010958,2]
[323700593,1714168239386,-500.0,0.00010958,2]
[323700594,1714168239396,-500.0,0.00010958,2]
[323700595,1714168239406,-500.0,0.00010958,2]
[323700596,1714168239417,-347.70572422,0.00010958,2]
[323700597,1714168239427,-500.0,0.00010958,2]
[323700598,1714168239437,-500.0,0.00010958,2]
[323700599,1714168239448,-565.11,0.00010958,2]
[323700600,1714168239458,-500.0,0.00010958,2]
[323700601,1714168239468,-488.0,0.00010958,2]
[323700602,1714168239479,-504.42039534,0.00010958,2]
[323700603,1714168239489,-500.0,0.00010958,2]
[323700604,1714168239500,-500.0,0.00010958,2]
[323700605,1714168239511,-500.0,0.00010958,2]
[323700606,1714168239521,-500.0,0.00010958,2]
[323700607,1714168239531,-500.0,0.00010958,2]
[323700608,1714168239542,-500.0,0.00010958,2]
[323700609,1714168239553,-500.0,0.00010958,2]
[323700610,1714168239563,-500.0,0.00010958,2]
[323700611,1714168239573,-500.0,0.00010958,2]
[323700612,1714168239583,-500.0,0.00010958,2]
[323700613,1714168239593,-500.0,0.00010958,2]
[323700614,1714168239604,-500.0,0.00010958,2]
[323700615,1714168239615,-500.0,0.00010958,2]
[323700616,1714168239625,-500.0,0.00010958,2]
[323700617,1714168239635,-500.0,0.00010958,2]
[323700619,1714168239645,-547.34345617,0.00010958,2]
[323700621,1714168239655,-500.0,0.00010958,2]
[323700623,1714168239665,-500.0,0.00010958,2]
[323700625,1714168239675,-500.0,0.00010958,2]
[323700627,1714168239685,-500.0,0.00010958,2]
[323700629,1714168239695,-500.0,0.00010958,2]
[323700631,1714168239705,-500.0,0.00010958,2]
[323700633,1714168239715,-500.0,0.00010958,2]
[323700678,1714168240093,-500.0,0.00010958,2]
[323700680,1714168240103,-500.0,0.00010958,2]
[323700682,1714168240113,-500.0,0.00010958,2]
[323700684,1714168240122,-500.0,0.00010958,2]
[323700686,1714168240131,-500.0,0.00010958,2]
[323700688,1714168240141,-500.0,0.00010958,2]
[323700690,1714168240150,-503.54498219,0.00010958,2]
[323700692,1714168240159,-500.0,0.00010958,2]
[323700694,1714168240168,-500.0,0.00010958,2]
[323700696,1714168240177,-500.0,0.00010958,2]
[323700698,1714168240186,-500.0,0.00010958,2]
[323700700,1714168240196,-500.0,0.00010958,2]
[323700702,1714168240205,-500.0,0.00010958,2]
[323700704,1714168240215,-500.0,0.00010958,2]
[323700706,1714168240224,-500.0,0.00010958,2]
[323700708,1714168240233,-500.0,0.00010958,2]
[323700710,1714168240242,-500.0,0.00010958,2]
[323700712,1714168240251,-500.0,0.00010958,2]
[323700714,1714168240261,-500.0,0.00010958,2]
[323700716,1714168240270,-500.0,0.00010958,2]
[323700718,1714168240279,-500.0,0.00010958,2]
[323700720,1714168240288,-500.0,0.00010958,2]
[323700722,1714168240297,-500.0,0.00010958,2]
[323700724,1714168240307,-500.0,0.00010958,2]
[323700726,1714168240318,-500.0,0.00010958,2]
[323700728,1714168240327,-500.0,0.00010958,2]
[323700730,1714168240337,-500.0,0.00010958,2]
[323700732,1714168240345,-500.0,0.00010958,2]
[323700734,1714168240354,-500.0,0.00010958,2]
[323700736,1714168240363,-500.0,0.00010958,2]
[323700738,1714168240372,-500.0,0.00010958,2]
[323700740,1714168240381,-500.0,0.00010958,2]
[323700742,1714168240391,-500.0,0.00010958,2]
[323700744,1714168240400,-500.0,0.00010958,2]
[323700746,1714168240409,-500.0,0.00010958,2]
[323700748,1714168240419,-500.0,0.00010958,2]
[323700750,1714168240428,-500.0,0.00010958,2]
[323700752,1714168240437,-500.0,0.00010958,2]
[323700754,1714168240446,-500.0,0.00010958,2]
[323700756,1714168240455,-500.0,0.00010958,2]
[323700758,1714168240464,-500.0,0.00010958,2]
[323700760,1714168240473,-500.0,0.00010958,2]
[323700762,1714168240482,-500.0,0.00010958,2]
[323700764,1714168240491,-500.0,0.00010958,2]
[323700765,1714168240500,-500.0,0.00010958,2]
[323700767,1714168240510,-500.0,0.00010958,2]
[323700769,1714168240518,-607.61,0.00010958,2]
[323700771,1714168240528,-572.92,0.00010958,2]
[323700773,1714168240537,-500.0,0.00010958,2]
[323700775,1714168240546,-500.0,0.00010958,2]
[323700776,1714168240555,-500.0,0.00010958,2]
[323700778,1714168240565,-500.0,0.00010958,2]
[323700780,1714168240574,-500.0,0.00010958,2]
[323700782,1714168240584,-500.0,0.00010958,2]
[323700784,1714168240593,-500.0,0.00010958,2]
[323700786,1714168240602,-500.0,0.00010958,2]
[323700788,1714168240611,-500.0,0.00010958,2]
[323700790,1714168240620,-500.0,0.00010958,2]
[323700792,1714168240629,-500.0,0.00010958,2]
[323700793,1714168240638,-500.0,0.00010958,2]
[323700795,1714168240647,-500.0,0.00010958,2]
[323700798,1714168240657,-500.0,0.00010958,2]
[323700800,1714168240666,-500.0,0.00010958,2]
[323700802,1714168240676,-500.0,0.00010958,2]
[323700803,1714168240685,-500.0,0.00010958,2]
[323700805,1714168240694,-156.38400229,0.00010958,2]
[323700807,1714168240703,-500.0,0.00010958,2]
[323700809,1714168240711,-500.0,0.00010958,2]
[323700811,1714168240721,-536.8262733,0.00010958,2]
[323700813,1714168240730,-500.0,0.00010958,2]
[323700815,1714168240739,-500.0,0.00010958,2]
[323700816,1714168240750,-500.0,0.00010958,2]
[323700817,1714168240759,-500.0,0.00010958,2]
[323700818,1714168240768,-500.0,0.00010958,2]
[323700819,1714168240777,-500.0,0.00010958,2]
[323700820,1714168240786,-500.0,0.00010958,2]
[323700821,1714168240796,-500.0,0.00010958,2]
[323700822,1714168240805,-500.0,0.00010958,2]
[323700823,1714168240814,-500.0,0.00010958,2]
[323700824,1714168240824,-500.0,0.00010958,2]
[323700825,1714168240833,-500.0,0.00010958,2]
[323700826,1714168240844,-500.0,0.00010958,2]
[323700827,1714168240853,-304.76647556,0.00010958,2]
[323700828,1714168240862,-500.0,0.00010958,2]
[323700829,1714168240872,-500.0,0.00010958,2]
[323700830,1714168240881,-500.0,0.00010958,2]
[323700831,1714168240891,-500.0,0.00010958,2]
[323700832,1714168240900,-526.6,0.00010958,2]
[323700833,1714168240911,-500.0,0.00010958,2]
[323700834,1714168240922,-500.0,0.00010958,2]
[323700835,1714168240931,-503.85158862,0.00010958,2]
[323700836,1714168240942,-500.0,0.00010958,2]
[323700837,1714168240953,-500.0,0.00010958,2]
[323700838,1714168240963,-500.0,0.00010958,2]
[323700839,1714168240973,-500.0,0.00010958,2]
[323700840,1714168240982,-500.0,0.00010958,2]
[323700841,1714168240991,-500.0,0.00010958,2]
[323700842,1714168241000,-500.0,0.00010958,2]
[323700843,1714168241015,-500.0,0.00010958,2]
[323700844,1714168241024,-500.0,0.00010958,2]
[323700845,1714168241033,-500.0,0.00010958,2]
[323700846,1714168241043,-500.0,0.00010958,2]
[323700847,1714168241054,-500.0,0.00010958,2]
[323700848,1714168241065,-500.0,0.00010958,2]
[323700849,1714168241075,-500.0,0.00010958,2]
[323700850,1714168241087,-500.0,0.00010958,2]
[323700851,1714168241096,-501.38993402,0.00010958,2]
[323700852,1714168241105,-412.57326771,0.00010958,2]
[323700853,1714168241114,-500.0,0.00010958,2]
[323700854,1714168241123,-500.16843605,0.00010958,2]
[323700855,1714168241132,-500.0,0.00010958,2]
[323700856,1714168241142,-500.0,0.00010958,2]
[323700857,1714168241152,-501.1578786,0.00010958,2]
[323700858,1714168241162,-500.0,0.00010958,2]
[323700859,1714168241172,-500.0,0.00010958,2]
[323700860,1714168241181,-500.0,0.00010958,2]
[323700861,1714168241190,-500.0,0.00010958,2]
[323700862,1714168241199,-501.24912981,0.00010958,2]
[323700863,1714168241209,-500.0,0.00010958,2]
[323700864,1714168241218,-500.0,0.00010958,2]
[323700865,1714168241227,-500.0,0.00010958,2]
[323700866,1714168241236,-500.0,0.00010958,2]
[323700867,1714168241245,-500.0,0.00010958,2]
[323700868,1714168241255,-500.0,0.00010958,2]
[323700869,1714168241264,-500.0,0.00010958,2]
[323700870,1714168241273,-177.39022925,0.00010958,2]
[323700871,1714168241282,-500.0,0.00010958,2]
[323700872,1714168241292,-500.0,0.00010958,2]
[323700873,1714168241301,-500.0,0.00010958,2]
[323700874,1714168241312,-500.0,0.00010958,2]
[323700875,1714168241321,-500.0,0.00010958,2]
[323700876,1714168241332,-500.0,0.00010958,2]
[323700877,1714168241341,-500.0,0.00010958,2]
[323700878,1714168241351,-500.0,0.00010958,2]
[323700879,1714168241361,-500.0,0.00010958,2]
[323700880,1714168241369,-500.0,0.00010958,2]
[323700881,1714168241379,-500.0,0.00010958,2]
[323700882,1714168241390,-500.0,0.00010958,2]
[323700883,1714168241399,-500.0,0.00010958,2]
[323700884,1714168241408,-709.11,0.00010958,2]
[323700885,1714168241418,-500.0,0.00010958,2]
[323700886,1714168241428,-563.4,0.00010958,2]
[323700887,1714168241437,-573.99,0.00010958,2]
[323700888,1714168241447,-500.0,0.00010958,2]